bitfinex-derivatives/quotes_BTCF0:USTF0_20251229
["timestamp","ask_amount","ask_price","bid_price","bid_amount"]
[1767003393776,0.00017038,88071.0,88056.0,0.05716]
[1767003393777,0.011368,88070.0,88056.0,0.05716]
[1767003393972,0.02412968,88069.0,88054.0,0.00017038]
[1767003394271,0.02412968,88068.0,88055.0,0.05716]
[1767003394470,0.02412968,88067.0,88055.0,0.05716]
[1767003394769,0.02412968,88066.0,88055.0,0.05716]
[1767003394966,0.02412968,88065.0,88038.0,0.011372]
[1767003395171,0.02412968,88064.0,88039.0,0.15376]
[1767003395372,0.0113701,88054.0,88039.0,0.18376]
[1767003395565,0.0113701,88054.0,88040.0,0.18408773]
[1767003395764,0.0113697,88057.0,88040.0,0.21408773]
[1767003395964,0.0113697,88057.0,88040.0,0.21425811]
[1767003396367,0.0113702,88053.0,88040.0,0.21425811]
[1767003396571,0.0113702,88053.0,88041.0,0.15376]
[1767003396773,0.0113702,88053.0,88041.0,0.18376]
[1767003396974,2e-07,88053.0,88041.0,0.18376]
[1767003398167,2e-07,88053.0,88042.0,0.05716]
[1767003398365,2e-07,88053.0,88042.0,0.15376]
[1767003398868,3e-07,88054.0,88042.0,0.15376]
[1767003399278,2e-07,88055.0,88042.0,0.15376]
[1767003400178,0.0113701,88055.0,88042.0,0.15376]
[1767003402575,0.0113703,88052.0,88042.0,0.15376]
[1767003402777,0.0113706,88050.0,88040.0,0.00017038]
[1767003402976,2e-07,88055.0,88040.0,0.09660008]
[1767003403178,0.0113712,88045.0,88041.0,0.05716]
[1767003403377,0.0113709,88048.0,88041.0,0.05716]
[1767003403572,9e-07,88048.0,88041.0,0.05716]
[1767003404574,0.0113711,88046.0,88028.0,0.0113734]
[1767003404774,0.0113713,88044.0,88029.0,0.15376]
[1767003404968,0.0113716,88042.0,88029.0,0.18376]
[1767003405167,9e-07,88048.0,88029.0,0.18376]
[1767003405168,0.0113713,88045.0,88029.0,0.18376]
[1767003405374,9e-07,88048.0,88029.0,0.1951332]
[1767003405574,9e-07,88048.0,88033.0,0.0113726]
[1767003405877,9e-07,88048.0,88034.0,0.05716]
[1767003406472,9e-07,88048.0,88039.0,0.0113719]
[1767003406675,0.0113697,88057.0,88039.0,0.0113719]
[1767003406676,0.05927088,88068.0,88040.0,0.15376]
[1767003406874,0.0966,88067.0,88040.0,0.18376]
[1767003407075,0.02416667,88066.0,88040.0,0.18376]
[1767003407381,0.0113697,88057.0,88040.0,0.18376]
[1767003407580,0.02416667,88056.0,88040.0,0.18393038]
[1767003407884,0.02416667,88055.0,88040.0,0.15393038]
[1767003408178,0.02416667,88054.0,88041.0,0.0113716]
[1767003408382,0.0113698,88056.0,88040.0,0.15393038]
[1767003408681,4e-08,88055.0,88040.0,0.15393038]
[1767003408883,0.00017038,88057.0,88040.0,0.15393038]
[1767003410282,0.0113702,88053.0,88040.0,0.15393038]
[1767003410583,0.0113702,88053.0,88040.0,0.18393038]
[1767003410882,0.0113698,88056.0,88040.0,0.18393038]
[1767003412376,0.00017038,88057.0,88040.0,0.18393038]
[1767003412686,0.00017038,88057.0,88041.0,0.0113717]
[1767003412874,0.00017038,88057.0,88041.0,0.03]
[1767003413182,0.00017038,88057.0,88042.0,0.0113715]
[1767003413383,0.00017038,88057.0,88042.0,0.0413715]
[1767003413790,0.00017038,88057.0,88045.0,0.0113711]
[1767003413982,0.00017038,88057.0,88046.0,0.05716]
[1767003415382,0.00017038,88057.0,88041.0,0.0113716]
[1767003415383,0.00017038,88057.0,88047.0,0.05716]
[1767003415780,3.8e-07,88057.0,88047.0,0.05716]
[1767003417780,0.0966,88067.0,88047.0,0.05716]
[1767003417990,0.0113685,88066.0,88047.0,0.0685308]
[1767003418173,0.0966,88067.0,88049.0,0.0113706]
[1767003418574,0.0113686,88065.0,88047.0,0.05716]
[1767003418776,0.011369,88063.0,88047.0,0.05716]
[1767003420586,0.02412426,88062.0,88047.0,0.05716]
[1767003420782,0.02412426,88061.0,88048.0,0.0113708]
[1767003420989,0.02412426,88060.0,88048.0,0.0113708]
[1767003421287,0.02412426,88059.0,88047.0,0.05716]
[1767003421489,0.0113696,88057.0,88047.0,0.05716]
[1767003422488,0.0113696,88057.0,88048.0,0.05716]
[1767003422987,0.00017038,88065.0,88048.0,0.05716]
[1767003423290,0.02413102,88064.0,88048.0,0.05716]
[1767003423590,0.02413102,88063.0,88048.0,0.05716]
[1767003423790,0.02413102,88062.0,88048.0,0.05716]
[1767003424182,0.02413102,88061.0,88048.0,0.05716]
[1767003424383,0.02413102,88060.0,88048.0,0.05716]
[1767003424784,0.02413102,88060.0,88040.0,0.00017038]
[1767003424984,0.02413102,88059.0,88041.0,0.15376]
[1767003425190,0.0113704,88052.0,88041.0,0.15376]
[1767003425385,0.01153908,88065.0,88041.0,0.15376]
[1767003425581,0.0113702,88053.0,88041.0,0.15376]
[1767003425790,0.01153908,88065.0,88041.0,0.15376]
[1767003425991,0.00017038,88065.0,88041.0,0.18376]
[1767003426192,0.01137,88055.0,88041.0,0.18376]
[1767003426391,0.01137,88055.0,88041.0,0.15376]
[1767003427704,0.0113698,88056.0,88041.0,0.15376]
[1767003427906,0.00017038,88065.0,88041.0,0.15376]
[1767003428107,0.0113693,88060.0,88041.0,0.1651316]
[1767003428304,0.00017038,88065.0,88042.0,0.0113715]
[1767003428605,0.0113694,88059.0,88042.0,0.0413715]
[1767003428806,0.0113696,88058.0,88041.0,0.15376]
[1767003428997,0.0113696,88058.0,88041.0,0.18376]
[1767003429504,0.00017038,88065.0,88041.0,0.18376]
[1767003429697,0.0113695,88059.0,88041.0,0.15376]
[1767003429991,0.00017038,88065.0,88041.0,0.15376]
[1767003430502,0.0113701,88054.0,88040.0,0.00017038]
[1767003430805,0.00017038,88065.0,88040.0,8e-08]
[1767003431008,0.00017038,88065.0,87990.0,0.35486921]
[1767003431009,0.0113716,88042.0,88032.0,0.05716]
[1767003431308,0.0113717,88042.0,88032.0,0.05716]
[1767003431801,0.0113717,88042.0,88028.0,0.0966]
[1767003431802,0.0113717,88042.0,88029.0,0.05716]
[1767003431999,0.0113716,88042.0,88029.0,0.06716]
[1767003432194,0.00017038,88044.0,88029.0,0.06716]
[1767003432399,0.0113721,88039.0,88029.0,0.06716]
[1767003432904,0.0113716,88042.0,88029.0,0.06716]
[1767003433098,0.0113719,88040.0,88029.0,0.06716]
[1767003433299,0.0113723,88037.0,88029.0,0.06716]
[1767003434104,0.00017038,88044.0,88029.0,0.06716]
[1767003434406,0.0113725,88035.0,88029.0,0.06716]
[1767003434609,0.0113721,88038.0,88029.0,0.06716]
[1767003434802,0.0113721,88038.0,88029.0,0.01]
[1767003435105,0.0113724,88036.0,88030.0,0.05716]
[1767003435802,0.00017038,88044.0,88030.0,0.05716]
[1767003437008,0.00017038,88044.0,88027.0,0.00017038]
[1767003437208,0.00017038,88044.0,88027.0,0.03017038]
[1767003437399,0.00017038,88044.0,88028.0,0.05716]
[1767003437600,0.0113718,88041.0,88028.0,0.08716]
[1767003437800,0.01154168,88044.0,88028.0,0.08716]
[1767003438104,0.0113702,88053.0,88028.0,0.08716]
[1767003438304,0.0113719,88040.0,88028.0,0.08716]
[1767003439399,0.00017038,88043.0,88028.0,0.08716]
[1767003439400,0.0113718,88041.0,88028.0,0.08716]
[1767003439599,0.0113718,88041.0,88029.0,0.05716]
[1767003439803,0.0113718,88041.0,88029.0,0.06716]
[1767003440110,0.00017038,88043.0,88029.0,0.06716]
[1767003440304,3.8e-07,88043.0,88029.0,0.06716]
[1767003441610,0.0113723,88037.0,88029.0,0.06716]
[1767003441801,3.8e-07,88043.0,88027.0,0.00017038]
[1767003442002,3.8e-07,88043.0,88027.0,8e-08]
[1767003442003,0.0113733,88029.0,88027.0,8e-08]
[1767003442202,0.0113736,88027.0,88018.0,0.05716]
[1767003442406,0.0113736,88027.0,88018.0,0.08716]
[1767003442711,0.0113718,88041.0,88018.0,0.08716]
[1767003442914,0.02407458,88040.0,88018.0,0.08716]
[1767003443098,0.0113734,88029.0,88021.0,0.00017038]
[1767003443303,0.0113734,88029.0,88021.0,0.03017038]
[1767003444513,0.0113737,88026.0,88014.0,0.00012269]
[1767003444709,0.09664038,88043.0,88014.0,0.03012269]
[1767003444905,0.0113717,88041.0,88014.0,0.03012269]
[1767003445105,0.0113735,88028.0,88014.0,0.03012269]
[1767003447821,0.0113717,88041.0,88014.0,0.03012269]
[1767003448014,0.0113722,88037.0,88014.0,0.03012269]
[1767003448313,0.09664038,88043.0,88014.0,0.03012269]
[1767003448510,0.0113724,88036.0,88017.0,0.0113747]
[1767003448710,0.0113724,88036.0,88017.0,0.0413747]
[1767003449713,0.0113724,88036.0,88019.0,0.0113744]
[1767003449912,0.0113724,88036.0,88020.0,0.05716]
[1767003450516,0.011372,88039.0,88023.0,0.011374]
[1767003450821,0.0113723,88037.0,88023.0,0.011374]
[1767003451119,0.0113723,88037.0,88020.0,0.05716]
[1767003451320,0.0113725,88035.0,88020.0,0.05716]
[1767003452312,0.0113729,88033.0,88020.0,0.05716]
[1767003452815,0.0113724,88036.0,88020.0,0.05716]
[1767003453219,0.0113724,88036.0,88020.0,0.0685344]
[1767003453416,0.0113716,88042.0,88022.0,0.0113741]
[1767003453721,0.011372,88039.0,88020.0,0.05716]
[1767003454023,0.011372,88039.0,88020.0,0.06716]
[1767003454424,0.0113723,88037.0,88020.0,0.0785343]
[1767003455623,0.0113719,88040.0,88023.0,0.011374]
[1767003457628,0.09664038,88043.0,88023.0,0.011374]
[1767003459328,0.0113721,88039.0,88020.0,0.0685344]
[1767003460129,0.0113723,88037.0,88020.0,0.05716]
[1767003460422,0.0113725,88035.0,88020.0,0.0685344]
[1767003460628,0.02391722,88034.0,88020.0,0.0685344]
[1767003460928,0.09664038,88043.0,88015.0,0.01136]
[1767003460929,0.0113736,88027.0,88016.0,0.05716]
[1767003461119,0.0113736,88027.0,88016.0,0.08716]
[1767003461320,0.0113732,88030.0,88016.0,0.08716]
[1767003461725,0.0113728,88033.0,88016.0,0.08716]
[1767003461926,0.011373,88031.0,88016.0,0.08716]
[1767003462128,0.02391554,88030.0,88016.0,0.0985349]
[1767003462328,0.09664038,88043.0,88018.0,0.0113746]
[1767003462533,0.0113718,88041.0,88024.0,0.0113738]
[1767003462833,0.02391585,88040.0,88020.0,0.18427673]
[1767003463018,0.02391585,88039.0,88020.0,0.18427673]
[1767003463221,0.02391585,88038.0,88020.0,0.18427673]
[1767003463422,0.0113726,88035.0,88020.0,0.18427673]
[1767003463624,0.02391585,88034.0,88020.0,0.18427673]
[1767003464032,0.02391585,88034.0,88016.0,0.05716]
[1767003464233,0.0113728,88033.0,88016.0,0.08716]
[1767003464437,0.02391585,88032.0,88016.0,0.08716]
[1767003464624,0.18427673,88040.0,88016.0,0.08716]
[1767003464825,0.0113729,88032.0,88016.0,0.08716]
[1767003465128,0.02392164,88031.0,88016.0,0.08716]
[1767003465428,0.18427673,88040.0,88016.0,0.08716]
[1767003465732,0.02392166,88039.0,88016.0,0.08716]
[1767003465932,0.02392166,88038.0,88016.0,0.08716]
[1767003466131,0.02392166,88037.0,88016.0,0.08716]
[1767003466331,0.0113728,88033.0,88016.0,0.08716]
[1767003466527,0.02392166,88032.0,88016.0,0.08716]
[1767003467836,0.011373,88031.0,88016.0,0.08716]
[1767003469128,0.0239347,88030.0,88016.0,0.08716]
[1767003469328,0.011373,88031.0,88016.0,0.08716]
[1767003469528,0.0239348,88030.0,88016.0,0.08716]
[1767003469731,0.011373,88031.0,88016.0,0.08716]
[1767003470028,0.02393479,88030.0,88016.0,0.0985349]
[1767003470336,0.0113734,88028.0,88016.0,0.08716]
[1767003471437,0.0113729,88032.0,88016.0,0.08716]
[1767003471638,0.02395694,88031.0,88016.0,0.08716]
[1767003471837,0.02395694,88030.0,88016.0,0.08716]
[1767003472035,0.02395694,88029.0,88016.0,0.08716]
[1767003472237,0.0113739,88025.0,88016.0,0.03]
[1767003472432,0.18427673,88030.0,88017.0,0.05716]
[1767003472632,0.0113734,88028.0,88017.0,0.08716]
[1767003472836,0.02396168,88027.0,88017.0,0.08716]
[1767003473842,0.02396168,88027.0,88018.0,0.05716]
[1767003474038,0.0113737,88026.0,88019.0,0.05716]
[1767003475041,0.0113733,88029.0,88019.0,0.05716]
[1767003475242,0.02395731,88028.0,88019.0,0.05716]
[1767003475541,0.02395778,88027.0,88018.0,0.05716]
[1767003475743,0.02395778,88026.0,88018.0,0.05716]
[1767003475942,0.0113733,88029.0,88018.0,0.05716]
[1767003476142,0.02391272,88028.0,88018.0,0.05716]
[1767003476343,0.02391272,88027.0,88018.0,0.05716]
[1767003476546,0.02391272,88026.0,88018.0,0.05716]
[1767003476845,0.0113733,88029.0,88018.0,0.05716]
[1767003477035,0.02392257,88028.0,88018.0,0.05716]
[1767003477233,0.02392257,88027.0,88018.0,0.05716]
[1767003477437,0.02392257,88026.0,88018.0,0.05716]
[1767003477643,0.0113733,88029.0,88018.0,0.05716]
[1767003477841,0.02392213,88028.0,88018.0,0.05716]
[1767003478040,0.02392213,88027.0,88018.0,0.05716]
[1767003478244,0.0113733,88029.0,88018.0,0.05716]
[1767003478742,0.0113736,88027.0,88019.0,0.01136]
[1767003478936,0.0113737,88026.0,88019.0,0.01136]
[1767003479440,0.0113722,88038.0,88019.0,0.01136]
[1767003479646,0.0113724,88036.0,88019.0,0.01136]
[1767003480334,0.0113739,88025.0,88019.0,0.01136]
[1767003481346,0.0113742,88023.0,88014.0,0.00012269]
[1767003481645,0.0113742,88023.0,88015.0,0.05716]
[1767003481847,0.011374,88024.0,88015.0,0.05716]
[1767003482045,0.0113726,88035.0,88014.0,0.00012269]
[1767003482246,0.0113726,88035.0,88015.0,0.05716]
[1767003482547,0.0113726,88035.0,88014.0,0.00012269]
[1767003482843,0.18427673,88030.0,88014.0,0.00012269]
[1767003483147,0.0113745,88020.0,88014.0,0.05728269]
[1767003483357,0.0113741,88023.0,88014.0,0.05728269]
[1767003483645,0.18427673,88030.0,88014.0,0.05728269]
[1767003483845,0.09664,88031.0,88014.0,0.05728269]
[1767003484047,0.011374,88024.0,88014.0,0.05728269]
[1767003485250,0.0113744,88021.0,88014.0,0.05728269]
[1767003485448,0.0113751,88015.0,88010.0,0.05716]
[1767003485644,0.0113747,88018.0,88010.0,0.08716]
[1767003486336,0.00011278,88017.0,88010.0,0.08716]
[1767003486535,0.00011278,88017.0,88010.0,0.03]
[1767003488044,0.00011278,88017.0,88009.0,0.05716]
[1767003488246,2.78e-06,88017.0,88009.0,0.05716]
[1767003490552,2.78e-06,88017.0,88010.0,0.05716]
[1767003490753,0.01137758,88017.0,88010.0,0.05716]
[1767003491267,0.0113749,88016.0,88010.0,0.05716]
[1767003492452,0.0113749,88016.0,88008.0,0.05712]
[1767003493744,0.0113749,88016.0,88008.0,0.05716]
[1767003494144,0.0113753,88013.0,88006.0,0.05712]
[1767003494343,0.0113753,88013.0,88001.0,0.09664]
[1767003494344,0.18427673,88016.0,88001.0,0.05712]
[1767003494656,0.0113759,88009.0,88001.0,0.08712]
[1767003495152,0.0113761,88007.0,87989.0,0.0777]
[1767003495456,0.0113761,88007.0,87990.0,0.15376]
[1767003495653,0.0113761,88007.0,87990.0,0.18376]
[1767003495854,0.0113761,88007.0,87990.0,0.18371]
[1767003496556,0.0113767,88003.0,87990.0,0.18371]
[1767003497056,0.18427673,88011.0,87990.0,0.18371]
[1767003497253,0.0113763,88006.0,87991.0,0.05712]
[1767003497447,0.0113763,88006.0,87991.0,0.08712]
[1767003497756,0.0113755,88012.0,87996.0,0.0113775]
[1767003497956,0.0113757,88010.0,87996.0,0.03]
[1767003498156,0.0113761,88008.0,87996.0,0.03]
[1767003498655,0.05712,88016.0,87996.0,0.03]
[1767003498850,0.02387092,88015.0,87996.0,0.03]
[1767003499044,0.02387092,88014.0,87996.0,0.02995]
[1767003499359,0.0113758,88010.0,87996.0,0.02995]
[1767003499747,0.011376,88008.0,87996.0,0.02995]
[1767003500554,0.0113756,88011.0,87996.0,0.02995]
[1767003503258,0.0113755,88012.0,87996.0,0.02995]
[1767003504055,0.0113758,88010.0,87996.0,0.02995]
[1767003505263,0.05712,88016.0,87996.0,0.02995]
[1767003505560,0.0113753,88014.0,87996.0,0.02995]
[1767003505862,0.0113758,88010.0,87993.0,0.05712]
[1767003506064,0.05712,88016.0,87993.0,0.08712]
[1767003506271,0.03525945,88015.0,87993.0,0.08712]
[1767003506456,0.02388435,88014.0,87993.0,0.08712]
[1767003506863,0.02388435,88013.0,87993.0,0.08712]
[1767003507064,0.05712,88016.0,87993.0,0.08712]
[1767003507266,0.0113757,88011.0,87995.0,0.0113776]
[1767003507467,0.0113757,88011.0,87995.0,0.0213776]
[1767003507762,0.0113752,88014.0,87998.0,0.0113773]
[1767003507963,0.02388521,88013.0,87994.0,0.0113777]
[1767003508163,0.0113752,88014.0,87996.0,0.0113774]
[1767003508469,0.02388581,88013.0,87996.0,0.0113774]
[1767003508656,0.0113755,88012.0,87994.0,0.0113777]
[1767003508961,0.0113767,88003.0,87994.0,0.03]
[1767003509464,0.0113762,88006.0,87994.0,0.03]
[1767003509666,0.0113758,88009.0,87994.0,0.03]
[1767003510060,0.0113762,88007.0,87994.0,0.03]
[1767003511663,0.05712,88008.0,87994.0,0.03]
[1767003512256,0.05712,88008.0,87996.0,0.0113774]
[1767003512563,0.05712,88008.0,87990.0,0.24139673]
[1767003512758,0.05712,88008.0,87995.0,0.0113776]
[1767003512957,0.05712,88008.0,87995.0,0.0213776]
[1767003514869,0.05712,88008.0,87995.0,0.01]
[1767003518171,0.05712,88008.0,87996.0,0.0113775]
[1767003518774,2.78e-06,88017.0,87998.0,0.18427673]
[1767003519068,0.0113712,88045.0,88012.0,0.0113753]
[1767003519274,0.09668,88036.0,88012.0,0.03]
[1767003519467,0.09703256,88057.0,88012.0,0.03]
[1767003519468,0.05712,88039.0,88026.0,0.18427673]
[1767003519776,0.05712,88039.0,88020.0,0.19565103]
[1767003519958,0.00017038,88038.0,88021.0,0.00017038]
[1767003520564,0.0113733,88029.0,88021.0,0.00017038]
[1767003520763,0.00017038,88038.0,88021.0,0.00017038]
[1767003521272,0.0113727,88034.0,88021.0,0.00017038]
[1767003521770,0.011373,88032.0,88021.0,0.00017038]
[1767003521976,0.00017038,88038.0,88021.0,0.00017038]
[1767003522767,0.0113731,88031.0,88015.0,0.05712]
[1767003523268,0.0113726,88034.0,88015.0,0.05712]
[1767003524563,0.0113731,88031.0,88015.0,0.05712]
[1767003526163,0.0113727,88034.0,88015.0,0.05712]
[1767003526366,0.0113731,88030.0,88029.0,0.13]
[1767003526571,0.0113731,88030.0,88015.0,0.05712]
[1767003527073,0.0113728,88033.0,88015.0,0.08712]
[1767003528875,0.0113731,88031.0,88015.0,0.08712]
[1767003529459,0.0113731,88031.0,88015.0,0.05712]
[1767003529661,0.0113731,88031.0,88015.0,0.08712]
[1767003529870,0.0113736,88027.0,88015.0,0.08712]
[1767003530075,0.00017038,88038.0,88015.0,0.08712]
[1767003530865,0.02373685,88037.0,88015.0,0.08712]
[1767003531068,0.02373685,88036.0,88015.0,0.08712]
[1767003531369,0.0113739,88025.0,88015.0,0.08712]
[1767003531674,0.011374,88023.0,88015.0,0.05712]
[1767003531874,0.0113723,88037.0,88015.0,0.05712]
[1767003532074,0.02374632,88036.0,88015.0,0.05712]
[1767003532270,0.02374632,88035.0,88015.0,0.05712]
[1767003532576,0.02374632,88034.0,88015.0,0.05712]
[1767003532775,0.02374632,88033.0,88015.0,0.05712]
[1767003532974,0.02374632,88032.0,88015.0,0.05712]
[1767003533175,0.00017038,88038.0,88015.0,0.05712]
[1767003533176,0.02374632,88031.0,88015.0,0.05712]
[1767003533379,0.00017038,88038.0,88015.0,0.05712]
[1767003533563,0.02374654,88037.0,88015.0,0.05712]
[1767003533762,0.02374654,88036.0,88015.0,0.05712]
[1767003533966,0.0113749,88016.0,88001.0,0.0777]
[1767003534175,0.0113749,88016.0,88000.0,0.05712]
[1767003534373,0.0113749,88016.0,88000.0,0.08712]
[1767003534776,0.0113753,88014.0,88000.0,0.08712]
[1767003536071,0.0113753,88014.0,88000.0,0.03]
[1767003536473,0.0113753,88014.0,88000.0,0.08712]
[1767003537182,0.0113755,88012.0,88000.0,0.08712]
[1767003537683,0.00017038,88017.0,88000.0,0.08712]
[1767003538377,0.0113752,88014.0,88000.0,0.08712]
[1767003539076,0.0113753,88013.0,88000.0,0.08712]
[1767003539676,0.011375,88016.0,88000.0,0.08712]
[1767003539876,0.0113752,88014.0,88000.0,0.08712]
[1767003540077,0.0113755,88012.0,88000.0,0.08712]
[1767003540375,0.0113752,88014.0,88000.0,0.08712]
[1767003540576,0.0113733,88029.0,88000.0,0.08712]
[1767003540777,0.0113749,88017.0,88000.0,0.0984969]
[1767003541284,0.09664,88031.0,88000.0,0.27157895]
[1767003541482,0.02359653,88030.0,88000.0,0.08729038]
[1767003541783,0.05927088,88055.0,88021.0,0.0113742]
[1767003541986,0.0113707,88049.0,88020.0,0.0113744]
[1767003542181,0.0113702,88053.0,88025.0,0.0113737]
[1767003542376,0.01140366,88060.0,88020.0,0.05256]
[1767003542377,0.011372,88039.0,88030.0,0.00017038]
[1767003542579,0.00017038,88048.0,88030.0,0.00017038]
[1767003542883,0.0113723,88037.0,88030.0,0.00017038]
[1767003543082,0.15376,88047.0,88030.0,0.00017038]
[1767003543275,0.0113723,88037.0,88030.0,0.00017038]
[1767003543586,0.15376,88047.0,88030.0,0.00017038]
[1767003544087,0.0113721,88039.0,88030.0,0.00017038]
[1767003544588,0.0113719,88040.0,88030.0,0.00017038]
[1767003545087,0.09664,88043.0,88030.0,0.00017038]
[1767003545288,0.0113719,88040.0,88030.0,0.00017038]
[1767003547782,0.09664,88043.0,88030.0,0.00017038]
[1767003547783,0.09664,88047.0,88030.0,0.00017038]
[1767003548184,0.00017038,88048.0,88030.0,0.00017038]
[1767003548388,0.00017038,88048.0,88033.0,0.0113726]
[1767003548588,0.01154118,88048.0,88030.0,0.00017038]
[1767003550297,0.01154118,88048.0,88032.0,0.0113728]
[1767003550490,0.01154118,88048.0,88032.0,0.0413728]
[1767003551788,0.00017038,88048.0,88032.0,0.03]
[1767003551991,0.0113692,88060.0,88033.0,0.05712]
[1767003552290,0.05712,88062.0,88044.0,0.0113712]
[1767003552691,0.0113679,88071.0,88044.0,0.08712]
[1767003552892,0.00017038,88066.0,88053.0,0.0113701]
[1767003555584,0.00017038,88066.0,88050.0,0.1080105]
[1767003555786,0.00017038,88066.0,88050.0,0.09664]
[1767003555997,0.011369,88062.0,88050.0,0.09664]
[1767003556492,0.011369,88062.0,88050.0,0.03]
[1767003556691,0.011369,88062.0,88049.0,0.00017038]
[1767003556692,0.00017038,88066.0,88049.0,0.09681038]
[1767003557294,0.0113689,88063.0,88049.0,0.12681038]
[1767003557994,0.0113692,88061.0,88029.0,0.09664]
[1767003558199,0.09664,88062.0,88029.0,0.09664]
[1767003558200,0.0113715,88043.0,88029.0,0.09664]
[1767003558398,0.0113695,88058.0,88029.0,0.09664]
[1767003558590,0.0113711,88046.0,88030.0,0.0113731]
[1767003558790,0.0113711,88046.0,88029.0,0.09664]
[1767003558990,0.00017038,88046.0,88029.0,0.10818358]
[1767003559194,0.00017038,88046.0,88029.0,0.09681038]
[1767003559392,0.0113712,88045.0,88029.0,0.09681038]
[1767003559592,0.00017038,88046.0,88030.0,0.0113731]
[1767003560699,0.00017038,88046.0,88033.0,0.0113727]
[1767003561400,0.00017038,88046.0,88030.0,0.0113731]
[1767003561792,0.00017038,88046.0,88029.0,0.15389038]
[1767003562094,0.19565537,88080.0,88044.0,0.0113712]
[1767003562095,0.0113691,88062.0,88044.0,0.0113712]
[1767003562299,0.1080086,88065.0,88046.0,0.0113709]
[1767003562600,0.0113689,88063.0,88046.0,0.0113709]
[1767003562799,0.0113689,88063.0,88040.0,0.05708]
[1767003562800,0.0113692,88061.0,88043.0,0.0113714]
[1767003563000,0.00017038,88061.0,88043.0,0.03017038]
[1767003563299,0.0113697,88057.0,88043.0,0.03017038]
[1767003565897,0.0113693,88060.0,88043.0,0.03017038]
[1767003566096,0.0113693,88060.0,88044.0,0.0113713]
[1767003566308,0.0113693,88060.0,88044.0,0.0413713]
[1767003567995,0.0113696,88058.0,88044.0,0.03]
[1767003568198,0.01153958,88061.0,88045.0,0.0113712]
[1767003568795,0.0113694,88059.0,88043.0,0.00017038]
[1767003569098,0.0113694,88059.0,88043.0,0.03017038]
[1767003569499,0.0113694,88059.0,88044.0,0.0113713]
[1767003569794,0.0113694,88059.0,88044.0,0.0413713]
[1767003569998,0.00017038,88061.0,88044.0,0.0413713]
[1767003569999,0.0113693,88060.0,88044.0,0.0413713]
[1767003572402,0.00017038,88061.0,88044.0,0.0413713]
[1767003572796,0.00017038,88061.0,88046.0,0.011371]
[1767003573201,0.00017038,88061.0,88046.0,0.041371]
[1767003573502,0.0113695,88059.0,88043.0,0.00017038]
[1767003573705,0.0113695,88059.0,88043.0,0.03017038]
[1767003574295,0.0113695,88059.0,88044.0,0.0113713]
[1767003574508,0.00017038,88061.0,88044.0,0.0413713]
[1767003575313,0.0113693,88060.0,88044.0,0.0413713]
[1767003575806,0.0113698,88056.0,88044.0,0.03]
[1767003576618,0.0113697,88057.0,88044.0,0.03]
[1767003577207,0.0113693,88060.0,88044.0,0.03]
[1767003577411,0.00017038,88061.0,88043.0,8e-08]
[1767003577598,0.00017038,88061.0,88024.0,0.0497738]
[1767003577599,0.0113716,88042.0,88024.0,0.0497738]
[1767003577805,0.0113724,88036.0,88024.0,0.0384]
[1767003578106,0.0113706,88050.0,88024.0,0.0384]
[1767003578107,0.0113722,88038.0,88024.0,0.0384]
[1767003579209,0.0113722,88038.0,88024.0,0.0584]
[1767003579603,0.00017038,88040.0,88024.0,0.0584]
[1767003579804,0.00017038,88040.0,88023.0,0.09664]
[1767003580116,0.0113736,88027.0,88017.0,0.05708]
[1767003583527,0.15389038,88040.0,88017.0,0.05708]
[1767003584120,0.011373,88031.0,88017.0,0.05708]
[1767003584830,0.33820456,88040.0,88017.0,0.05708]
[1767003586233,0.33820456,88040.0,88013.0,0.00017038]
[1767003586428,0.0113736,88027.0,88014.0,0.05708]
[1767003587132,0.0113736,88027.0,88013.0,0.00017038]
[1767003587337,0.0113736,88027.0,88014.0,0.05708]
[1767003587535,0.0113732,88030.0,88014.0,0.05708]
[1767003588131,0.0113727,88034.0,88014.0,0.0684551]
[1767003588327,0.0113729,88032.0,88020.0,0.18431418]
[1767003588527,0.33820456,88040.0,88014.0,0.05708]
[1767003590330,0.0113731,88031.0,88014.0,0.05708]
[1767003591135,0.0113726,88035.0,88014.0,0.05708]
[1767003591335,0.15389038,88040.0,88014.0,0.05708]
[1767003591336,0.0113728,88033.0,88016.0,0.0113749]
[1767003592634,0.0113728,88033.0,88020.0,0.18431418]
[1767003594637,0.15372,88038.0,88020.0,0.18431418]
[1767003596346,0.0113728,88033.0,88020.0,0.18431418]
[1767003596943,0.0113728,88033.0,88020.0,0.21431418]
[1767003598437,0.0113728,88033.0,88020.0,0.18431418]
[1767003598643,0.15372,88038.0,88020.0,0.18431418]
[1767003599648,0.0113751,88015.0,88013.0,8e-08]
[1767003599838,0.0113744,88021.0,88013.0,8e-08]
[1767003600034,0.0113745,88020.0,88013.0,8e-08]
[1767003600247,0.0113731,88031.0,88013.0,8e-08]
[1767003600433,0.0113745,88020.0,88013.0,8e-08]
[1767003600638,0.0113731,88031.0,88013.0,8e-08]
[1767003600842,0.0113744,88021.0,88013.0,8e-08]
[1767003601241,0.0113746,88019.0,88013.0,8e-08]
[1767003601438,0.0113748,88017.0,88013.0,8e-08]
[1767003602550,0.0113745,88020.0,88013.0,8e-08]
[1767003604652,0.0113741,88023.0,88013.0,8e-08]
[1767003604944,0.15372,88038.0,88013.0,8e-08]
[1767003604945,0.0113743,88022.0,88013.0,8e-08]
[1767003610554,0.0113746,88019.0,88013.0,8e-08]
[1767003610754,0.15372,88038.0,88011.0,0.05708]
[1767003610755,0.0113749,88017.0,88011.0,0.05708]
[1767003611056,0.18431418,88023.0,87997.0,0.0113773]
[1767003611057,0.0113752,88014.0,88001.0,0.05708]
[1767003611258,0.0113752,88014.0,88001.0,0.08708]
[1767003615361,0.0113755,88012.0,88001.0,0.08708]
[1767003615659,0.0113755,88012.0,88001.0,0.05708]
[1767003616565,0.0113751,88015.0,88001.0,0.05708]
[1767003616966,0.0113754,88013.0,88001.0,0.05708]
[1767003618967,0.00017038,88016.0,88001.0,0.08708]
[1767003619167,0.011374,88024.0,88006.0,0.18431418]
[1767003619468,0.09664,88030.0,88010.0,0.18431418]
[1767003619667,0.0113744,88021.0,88007.0,0.05708]
[1767003619871,0.0113744,88021.0,88010.0,0.18431418]
[1767003620466,0.0113747,88018.0,88010.0,0.18431418]
[1767003620666,0.0113747,88018.0,88010.0,0.21431418]
[1767003620859,0.0113747,88018.0,88010.0,0.03]
[1767003621264,0.0113744,88021.0,88010.0,0.03]
[1767003621867,0.01154438,88024.0,88010.0,0.03]